[Event "December 5 Late 2023"]
[Site "https://www.chess.com"]
[Date "2023.12.05"]
[Round "7"]
[White "Stevens, Matthew"]
[Black "Goltsev, Dmitry"]
[Result "1/2-1/2"]
[Board "59"]
[TimeControl "180+1"]
[WhiteFideId "2067633"]
[BlackFideId "24176710"]
[WhiteElo "2362"]
[BlackElo "2651"]
[WhiteTeam "USA"]
[BlackTeam "RUS"]
[WhiteClock "0:00:06"]
[BlackClock "0:00:13"]

1. d4 {[%clk 0:03:00]}  e6 {[%clk 0:03:00]} 2. c4 {[%clk 0:02:58]}  b6 {[%clk 0:02:59]} 3. Nf3 {[%clk 0:02:53]}  Bb7 {[%clk 0:02:58]} 4. Bf4 {[%clk 0:02:53]}  Nf6 {[%clk 0:02:58]} 5. e3 {[%clk 0:02:53]}  d6 {[%clk 0:02:58]} 6. Nc3 {[%clk 0:02:52]}  Nbd7 {[%clk 0:02:58]} 7. Be2 {[%clk 0:02:52]}  Be7 {[%clk 0:02:59]} 8. h3 {[%clk 0:02:52]}  O-O {[%clk 0:02:58]} 9. O-O {[%clk 0:02:52]}  Re8 {[%clk 0:02:58]} 10. Qc2 {[%clk 0:02:50]}  Bf8 {[%clk 0:02:59]} 11. Rfd1 {[%clk 0:02:49]}  a5 {[%clk 0:02:55]} 12. a3 {[%clk 0:02:48]}  Qe7 {[%clk 0:02:53]} 13. b4 {[%clk 0:02:46]}  e5 {[%clk 0:02:52]} 14. Bh2 {[%clk 0:02:47]}  exd4 {[%clk 0:02:42]} 15. Nxd4 {[%clk 0:02:46]}  g6 {[%clk 0:02:42]} 16. Bf3 {[%clk 0:02:42]}  Bxf3 {[%clk 0:02:39]} 17. Nxf3 {[%clk 0:02:43]}  Bg7 {[%clk 0:02:39]} 18. Rac1 {[%clk 0:02:41]}  axb4 {[%clk 0:02:38]} 19. axb4 {[%clk 0:02:40]}  Ne4 {[%clk 0:02:29]} 20. Nd5 {[%clk 0:02:34]}  Qd8 {[%clk 0:02:28]} 21. Nd2 {[%clk 0:02:25]}  Ndf6 {[%clk 0:02:24]} 22. Nxe4 {[%clk 0:02:19]}  Nxe4 {[%clk 0:02:24]} 23. c5 {[%clk 0:02:02]}  bxc5 {[%clk 0:02:20]} 24. bxc5 {[%clk 0:02:02]}  Nxc5 {[%clk 0:02:19]} 25. Nxc7 {[%clk 0:02:00]}  Qxc7 {[%clk 0:02:16]} 26. Bxd6 {[%clk 0:01:59]}  Qb7 {[%clk 0:02:00]} 27. Bxc5 {[%clk 0:01:53]}  Ra5 {[%clk 0:01:52]} 28. Bd4 {[%clk 0:01:50]}  Rg5 {[%clk 0:01:44]} 29. Qc6 {[%clk 0:01:47]}  Qe7 {[%clk 0:01:32]} 30. Bxg7 {[%clk 0:01:38]}  Kxg7 {[%clk 0:01:33]} 31. Rd7 {[%clk 0:01:37]}  Qe6 {[%clk 0:01:26]} 32. Qxe6 {[%clk 0:01:11]}  Rxe6 {[%clk 0:01:26]} 33. Rc4 {[%clk 0:00:54]}  Rf6 {[%clk 0:01:20]} 34. g3 {[%clk 0:00:46]}  h5 {[%clk 0:01:19]} 35. Kg2 {[%clk 0:00:41]}  Ra5 {[%clk 0:01:14]} 36. Rf4 {[%clk 0:00:39]}  Rxf4 {[%clk 0:01:12]} 37. gxf4 {[%clk 0:00:35]}  Ra2 {[%clk 0:01:11]} 38. Rd3 {[%clk 0:00:30]}  Kf6 {[%clk 0:01:08]} 39. Kf3 {[%clk 0:00:29]}  Ra1 {[%clk 0:01:06]} 40. e4 {[%clk 0:00:28]}  Rg1 {[%clk 0:01:04]} 41. Rd6+ {[%clk 0:00:27]}  Ke7 {[%clk 0:01:04]} 42. Rb6 {[%clk 0:00:26]}  Rh1 {[%clk 0:01:02]} 43. Kg2 {[%clk 0:00:25]}  Re1 {[%clk 0:01:03]} 44. f3 {[%clk 0:00:25]}  h4 {[%clk 0:01:02]} 45. Rb2 {[%clk 0:00:23]}  Rc1 {[%clk 0:00:58]} 46. Rd2 {[%clk 0:00:21]}  f5 {[%clk 0:00:55]} 47. Rb2 {[%clk 0:00:19]}  Kf6 {[%clk 0:00:53]} 48. Rb6+ {[%clk 0:00:18]}  Kg7 {[%clk 0:00:53]} 49. Rb7+ {[%clk 0:00:18]}  Kf8 {[%clk 0:00:48]} 50. Rh7 {[%clk 0:00:17]}  Rc2+ {[%clk 0:00:45]} 51. Kg1 {[%clk 0:00:17]}  Rc1+ {[%clk 0:00:45]} 52. Kf2 {[%clk 0:00:17]}  Rc2+ {[%clk 0:00:41]} 53. Ke3 {[%clk 0:00:17]}  Rc3+ {[%clk 0:00:41]} 54. Kd4 {[%clk 0:00:06]}  Rxf3 {[%clk 0:00:41]} 55. Rxh4 {[%clk 0:00:06]}  Kf7 {[%clk 0:00:39]} 56. exf5 {[%clk 0:00:03]}  gxf5 {[%clk 0:00:39]} 57. Ke5 {[%clk 0:00:04]}  Kg6 {[%clk 0:00:39]} 58. Rh8 {[%clk 0:00:04]}  Re3+ {[%clk 0:00:39]} 59. Kd4 {[%clk 0:00:05]}  Re4+ {[%clk 0:00:40]} 60. Kd3 {[%clk 0:00:06]}  Rxf4 {[%clk 0:00:41]} 61. Ke3 {[%clk 0:00:07]}  Rf1 {[%clk 0:00:39]} 62. Ke2 {[%clk 0:00:07]}  Rh1 {[%clk 0:00:38]} 63. Kf2 {[%clk 0:00:07]}  Kg7 {[%clk 0:00:38]} 64. Rh4 {[%clk 0:00:06]}  Kf6 {[%clk 0:00:39]} 65. Kf3 {[%clk 0:00:07]}  Ra1 {[%clk 0:00:35]} 66. Rh8 {[%clk 0:00:07]}  Kg7 {[%clk 0:00:34]} 67. Rh4 {[%clk 0:00:05]}  Ra3+ {[%clk 0:00:32]} 68. Kg2 {[%clk 0:00:05]}  Kg6 {[%clk 0:00:32]} 69. Rb4 {[%clk 0:00:05]}  Kg5 {[%clk 0:00:32]} 70. Kf2 {[%clk 0:00:05]}  Rxh3 {[%clk 0:00:31]} 71. Kg2 {[%clk 0:00:06]}  Ra3 {[%clk 0:00:32]} 72. Kf2 {[%clk 0:00:06]}  f4 {[%clk 0:00:31]} 73. Rb8 {[%clk 0:00:05]}  Ra2+ {[%clk 0:00:24]} 74. Kf3 {[%clk 0:00:05]}  Ra3+ {[%clk 0:00:25]} 75. Kf2 {[%clk 0:00:05]}  Kf5 {[%clk 0:00:23]} 76. Rf8+ {[%clk 0:00:05]}  Ke5 {[%clk 0:00:24]} 77. Re8+ {[%clk 0:00:05]}  Kd4 {[%clk 0:00:19]} 78. Rd8+ {[%clk 0:00:05]}  Ke5 {[%clk 0:00:18]} 79. Re8+ {[%clk 0:00:06]}  Kd6 {[%clk 0:00:18]} 80. Rf8 {[%clk 0:00:06]}  Ra4 {[%clk 0:00:18]} 81. Rd8+ {[%clk 0:00:05]}  Ke5 {[%clk 0:00:18]} 82. Re8+ {[%clk 0:00:06]}  Kf5 {[%clk 0:00:19]} 83. Rf8+ {[%clk 0:00:06]}  Kg5 {[%clk 0:00:19]} 84. Rg8+ {[%clk 0:00:07]}  Kf6 {[%clk 0:00:20]} 85. Kf3 {[%clk 0:00:07]}  Ke6 {[%clk 0:00:14]} 86. Rf8 {[%clk 0:00:06]}  Ra1 {[%clk 0:00:14]} 87. Rxf4 {[%clk 0:00:06]}  Ke5 {[%clk 0:00:15]} 88. Re4+ {[%clk 0:00:06]}  Kd5 {[%clk 0:00:15]} 89. Rf4 {[%clk 0:00:06]}  Rf1+ {[%clk 0:00:15]} 90. Kg4 {[%clk 0:00:07]}  Rg1+ {[%clk 0:00:15]} 91. Kf5 {[%clk 0:00:07]}  Rg8 {[%clk 0:00:14]} 92. Rf3 {[%clk 0:00:05]}  Kd4 {[%clk 0:00:13]} 93. Rf4+ {[%clk 0:00:05]}  Ke3 {[%clk 0:00:14]} 94. Re4+ {[%clk 0:00:05]}  Kf3 {[%clk 0:00:15]} 95. Rf4+ {[%clk 0:00:06]}  Kg3 {[%clk 0:00:15]} 96. Re4 {[%clk 0:00:05]}  Rf8+ {[%clk 0:00:15]} 97. Ke5 {[%clk 0:00:05]}  Kf3 {[%clk 0:00:16]} 98. Rc4 {[%clk 0:00:05]}  Re8+ {[%clk 0:00:16]} 99. Kd6 {[%clk 0:00:05]}  Ke3 {[%clk 0:00:15]} 100. Rc7 {[%clk 0:00:05]}  Kd4 {[%clk 0:00:15]} 101. Re7 {[%clk 0:00:05]}  Ra8 {[%clk 0:00:14]} 102. Rd7 {[%clk 0:00:04]}  Ra6+ {[%clk 0:00:13]} 103. Kc7+ {[%clk 0:00:03]}  Kc5 {[%clk 0:00:14]} 104. Rd1 {[%clk 0:00:04]}  Ra7+ {[%clk 0:00:12]} 105. Kb8 {[%clk 0:00:04]}  Rh7 {[%clk 0:00:12]} 106. Rc1+ {[%clk 0:00:05]}  Kd6 {[%clk 0:00:12]} 107. Rd1+ {[%clk 0:00:05]}  Ke7 {[%clk 0:00:11]} 108. Re1+ {[%clk 0:00:06]}  Kd8 {[%clk 0:00:12]} 109. Rd1+ {[%clk 0:00:06]}  Rd7 {[%clk 0:00:12]} 110. Rxd7+ {[%clk 0:00:06]}  Kxd7 {[%clk 0:00:13]} 1/2-1/2

[Event "December 5 Late 2023"]
[Site "https://www.chess.com"]
[Date "2023.12.05"]
[Round "7"]
[White "Martins, Vinicius Tine"]
[Black "Sarkar, Justin"]
[Result "1-0"]
[Board "60"]
[TimeControl "180+1"]
[WhiteFideId "2112884"]
[BlackFideId "2010011"]
[WhiteElo "2634"]
[BlackElo "2313"]
[WhiteTeam "BRA"]
[BlackTeam "USA"]
[WhiteClock "0:01:52"]
[BlackClock "0:00:00"]

1. d4 {[%clk 0:02:59]}  d5 {[%clk 0:02:44]} 2. Nf3 {[%clk 0:02:59]}  Nf6 {[%clk 0:02:41]} 3. Bf4 {[%clk 0:02:59]}  c5 {[%clk 0:02:39]} 4. e3 {[%clk 0:02:59]}  cxd4 {[%clk 0:02:36]} 5. exd4 {[%clk 0:02:58]}  Nc6 {[%clk 0:02:36]} 6. c3 {[%clk 0:02:57]}  Bf5 {[%clk 0:02:26]} 7. Nbd2 {[%clk 0:02:56]}  e6 {[%clk 0:02:25]} 8. Bb5 {[%clk 0:02:53]}  Nd7 {[%clk 0:02:16]} 9. a4 {[%clk 0:02:45]}  a6 {[%clk 0:02:03]} 10. Be2 {[%clk 0:02:44]}  Be7 {[%clk 0:01:58]} 11. O-O {[%clk 0:02:42]}  O-O {[%clk 0:01:58]} 12. Re1 {[%clk 0:02:40]}  Rc8 {[%clk 0:01:02]} 13. b4 {[%clk 0:02:27]}  g5 {[%clk 0:00:36]} 14. Bg3 {[%clk 0:02:16]}  h5 {[%clk 0:00:34]} 15. h3 {[%clk 0:02:13]}  h4 {[%clk 0:00:34]} 16. Bh2 {[%clk 0:02:12]}  Bf6 {[%clk 0:00:27]} 17. Nb3 {[%clk 0:02:07]}  Ncb8 {[%clk 0:00:20]} 18. Rc1 {[%clk 0:02:02]}  Re8 {[%clk 0:00:15]} 19. Bd3 {[%clk 0:01:59]}  Nf8 {[%clk 0:00:06]} 20. a5 {[%clk 0:01:54]}  Ng6 {[%clk 0:00:05]} 21. Nc5 {[%clk 0:01:53]}  Bxd3 {[%clk 0:00:00]} 22. Qxd3 {[%clk 0:01:52]} 1-0

[Event "December 5 Late 2023"]
[Site "https://www.chess.com"]
[Date "2023.12.05"]
[Round "7"]
[White "Bjelobrk, Igor"]
[Black "Wieczorek, Zbigniew"]
[Result "1-0"]
[Board "62"]
[TimeControl "180+1"]
[WhiteFideId "4300726"]
[BlackFideId "1102001"]
[WhiteElo "2584"]
[BlackElo "2233"]
[WhiteTeam "AUS"]
[BlackTeam "POL"]
[WhiteClock "0:01:00"]
[BlackClock "0:00:00"]

1. d4 {[%clk 0:03:00]}  d5 {[%clk 0:02:53]} 2. c4 {[%clk 0:03:00]}  e6 {[%clk 0:02:53]} 3. Nf3 {[%clk 0:03:00]}  Be7 {[%clk 0:02:53]} 4. g3 {[%clk 0:02:59]}  Nf6 {[%clk 0:02:54]} 5. Bg2 {[%clk 0:02:59]}  O-O {[%clk 0:02:54]} 6. O-O {[%clk 0:02:59]}  Ne4 {[%clk 0:02:52]} 7. Qc2 {[%clk 0:02:56]}  c6 {[%clk 0:02:50]} 8. b3 {[%clk 0:02:48]}  f5 {[%clk 0:02:48]} 9. Bb2 {[%clk 0:02:47]}  b6 {[%clk 0:02:41]} 10. e3 {[%clk 0:02:43]}  Bb7 {[%clk 0:02:41]} 11. Nc3 {[%clk 0:02:42]}  Nd7 {[%clk 0:02:41]} 12. Rac1 {[%clk 0:02:41]}  Rc8 {[%clk 0:02:40]} 13. Rfd1 {[%clk 0:02:39]}  Kh8 {[%clk 0:02:39]} 14. Ne2 {[%clk 0:02:39]}  Bf6 {[%clk 0:02:34]} 15. Ne5 {[%clk 0:02:37]}  c5 {[%clk 0:02:11]} 16. Qb1 {[%clk 0:02:35]}  cxd4 {[%clk 0:02:05]} 17. exd4 {[%clk 0:02:34]}  dxc4 {[%clk 0:01:57]} 18. Nxd7 {[%clk 0:02:26]}  Qxd7 {[%clk 0:01:50]} 19. bxc4 {[%clk 0:02:24]}  b5 {[%clk 0:01:30]} 20. c5 {[%clk 0:02:22]}  Bc6 {[%clk 0:00:56]} 21. f3 {[%clk 0:02:11]}  Ng5 {[%clk 0:00:51]} 22. Rd3 {[%clk 0:02:10]}  Qf7 {[%clk 0:00:32]} 23. Rcd1 {[%clk 0:02:00]}  Qh5 {[%clk 0:00:28]} 24. Nf4 {[%clk 0:01:59]}  Qe8 {[%clk 0:00:09]} 25. Re1 {[%clk 0:01:48]}  Qd7 {[%clk 0:00:07]} 26. h4 {[%clk 0:01:46]}  Nf7 {[%clk 0:00:06]} 27. Rxe6 {[%clk 0:01:38]}  Rfe8 {[%clk 0:00:05]} 28. Rxf6 {[%clk 0:01:33]}  gxf6 {[%clk 0:00:05]} 29. d5 {[%clk 0:01:33]}  Ba8 {[%clk 0:00:03]} 30. Bxf6+ {[%clk 0:01:32]}  Kg8 {[%clk 0:00:04]} 31. c6 {[%clk 0:01:29]}  Qd6 {[%clk 0:00:04]} 32. Ba1 {[%clk 0:01:28]}  Ne5 {[%clk 0:00:02]} 33. Rd1 {[%clk 0:01:25]}  Nc4 {[%clk 0:00:02]} 34. Qd3 {[%clk 0:01:21]}  Re5 {[%clk 0:00:02]} 35. Bxe5 {[%clk 0:01:20]}  Qxe5 {[%clk 0:00:03]} 36. Kh2 {[%clk 0:01:17]}  Rd8 {[%clk 0:00:01]} 37. Qe2 {[%clk 0:01:04]}  Bxc6 {[%clk 0:00:00]} 38. dxc6 {[%clk 0:01:00]} 1-0

[Event "December 5 Late 2023"]
[Site "https://www.chess.com"]
[Date "2023.12.05"]
[Round "7"]
[White "Kovalevsky, Stanislav"]
[Black "Gabuzyan, Hovhannes"]
[Result "0-1"]
[Board "63"]
[TimeControl "180+1"]
[WhiteFideId "13508598"]
[BlackFideId "13303732"]
[WhiteElo "2500"]
[BlackElo "2822"]
[WhiteTeam "FID"]
[BlackTeam "ARM"]
[WhiteClock "0:00:00"]
[BlackClock "0:00:24"]

1. e4 {[%clk 0:03:00]}  c5 {[%clk 0:02:59]} 2. c3 {[%clk 0:03:01]}  d5 {[%clk 0:02:59]} 3. exd5 {[%clk 0:03:01]}  Qxd5 {[%clk 0:03:00]} 4. Nf3 {[%clk 0:03:01]}  g6 {[%clk 0:03:01]} 5. d4 {[%clk 0:03:00]}  Bg7 {[%clk 0:03:01]} 6. Nbd2 {[%clk 0:03:00]}  cxd4 {[%clk 0:02:59]} 7. Bc4 {[%clk 0:03:00]}  Qd8 {[%clk 0:02:59]} 8. Nxd4 {[%clk 0:02:54]}  Nh6 {[%clk 0:02:59]} 9. O-O {[%clk 0:02:50]}  O-O {[%clk 0:02:59]} 10. N2f3 {[%clk 0:02:47]}  e5 {[%clk 0:02:58]} 11. Nxe5 {[%clk 0:02:41]}  Bxe5 {[%clk 0:02:54]} 12. Bxh6 {[%clk 0:02:41]}  Re8 {[%clk 0:02:54]} 13. Qf3 {[%clk 0:02:37]}  Qc7 {[%clk 0:02:50]} 14. Bb3 {[%clk 0:02:28]}  Bxh2+ {[%clk 0:02:49]} 15. Kh1 {[%clk 0:02:28]}  Be5 {[%clk 0:02:47]} 16. Rfe1 {[%clk 0:02:18]}  Nc6 {[%clk 0:02:47]} 17. Nxc6 {[%clk 0:02:08]}  bxc6 {[%clk 0:02:48]} 18. Re3 {[%clk 0:02:06]}  Be6 {[%clk 0:02:39]} 19. Rae1 {[%clk 0:02:00]}  Bxb3 {[%clk 0:02:30]} 20. axb3 {[%clk 0:01:59]}  Re6 {[%clk 0:02:28]} 21. Qg4 {[%clk 0:01:35]}  Rae8 {[%clk 0:02:24]} 22. f4 {[%clk 0:01:32]}  Bg7 {[%clk 0:01:55]} 23. Rxe6 {[%clk 0:01:30]}  fxe6 {[%clk 0:01:48]} 24. Rxe6 {[%clk 0:01:24]}  Rf8 {[%clk 0:01:34]} 25. Bxg7 {[%clk 0:01:18]}  Kxg7 {[%clk 0:01:35]} 26. Qh4 {[%clk 0:00:57]}  Rxf4 {[%clk 0:01:21]} 27. Re7+ {[%clk 0:00:52]}  Kf8 {[%clk 0:01:21]} 28. Rxc7 {[%clk 0:00:36]}  Rxh4+ {[%clk 0:01:21]} 29. Kg1 {[%clk 0:00:37]}  a5 {[%clk 0:01:16]} 30. Rxc6 {[%clk 0:00:33]}  Rh5 {[%clk 0:01:16]} 31. Rc7 {[%clk 0:00:29]}  Rb5 {[%clk 0:01:15]} 32. b4 {[%clk 0:00:25]}  axb4 {[%clk 0:01:15]} 33. c4 {[%clk 0:00:24]}  Re5 {[%clk 0:01:14]} 34. Rb7 {[%clk 0:00:23]}  Re2 {[%clk 0:01:11]} 35. Rxb4 {[%clk 0:00:23]}  Kg7 {[%clk 0:01:11]} 36. c5 {[%clk 0:00:20]}  Rc2 {[%clk 0:01:11]} 37. Rb5 {[%clk 0:00:21]}  Kf6 {[%clk 0:01:09]} 38. b4 {[%clk 0:00:21]}  Kf5 {[%clk 0:01:09]} 39. Kh2 {[%clk 0:00:20]}  Kg4 {[%clk 0:01:06]} 40. c6 {[%clk 0:00:20]}  Rxc6 {[%clk 0:01:02]} 41. Rb7 {[%clk 0:00:20]}  h5 {[%clk 0:01:02]} 42. b5 {[%clk 0:00:20]}  Rc2 {[%clk 0:01:01]} 43. b6 {[%clk 0:00:19]}  Rb2 {[%clk 0:01:01]} 44. Rb8 {[%clk 0:00:19]}  h4 {[%clk 0:01:00]} 45. b7 {[%clk 0:00:07]}  g5 {[%clk 0:01:00]} 46. Kg1 {[%clk 0:00:03]}  Kg3 {[%clk 0:01:00]} 47. Kf1 {[%clk 0:00:03]}  Rb1+ {[%clk 0:01:00]} 48. Ke2 {[%clk 0:00:03]}  g4 {[%clk 0:00:59]} 49. Ke3 {[%clk 0:00:02]}  Rb3+ {[%clk 0:00:59]} 50. Ke4 {[%clk 0:00:02]}  Kxg2 {[%clk 0:00:57]} 51. Rg8 {[%clk 0:00:02]}  Rb4+ {[%clk 0:00:23]} 52. Kd5 {[%clk 0:00:01]}  Rxb7 {[%clk 0:00:21]} 53. Rxg4+ {[%clk 0:00:01]}  Kh3 {[%clk 0:00:21]} 54. Rg6 {[%clk 0:00:01]}  Re7 {[%clk 0:00:21]} 55. Kd4 {[%clk 0:00:01]}  Kh2 {[%clk 0:00:22]} 56. Kd3 {[%clk 0:00:01]}  h3 {[%clk 0:00:22]} 57. Kd2 {[%clk 0:00:01]}  Kh1 {[%clk 0:00:22]} 58. Kd3 {[%clk 0:00:02]}  h2 {[%clk 0:00:21]} 59. Kd2 {[%clk 0:00:02]}  Re4 {[%clk 0:00:20]} 60. Kd3 {[%clk 0:00:02]}  Re1 {[%clk 0:00:21]} 61. Kd2 {[%clk 0:00:02]}  Rg1 {[%clk 0:00:21]} 62. Rh6 {[%clk 0:00:02]}  Rg2+ {[%clk 0:00:21]} 63. Ke1 {[%clk 0:00:03]}  Kg1 {[%clk 0:00:22]} 64. Rf6 {[%clk 0:00:02]}  h1=Q {[%clk 0:00:22]} 65. Rf1+ {[%clk 0:00:01]}  Kh2 {[%clk 0:00:23]} 66. Rxh1+ {[%clk 0:00:00]}  Kxh1 {[%clk 0:00:24]} 0-1

[Event "December 5 Late 2023"]
[Site "https://www.chess.com"]
[Date "2023.12.05"]
[Round "7"]
[White "Mazurkiewicz, Michal"]
[Black "Adewumi, Tanitoluwa"]
[Result "0-1"]
[Board "64"]
[TimeControl "180+1"]
[WhiteFideId "1124943"]
[BlackFideId "30966396"]
[WhiteElo "2499"]
[BlackElo "2732"]
[WhiteTeam "POL"]
[BlackTeam "USA"]
[WhiteClock "0:00:12"]
[BlackClock "0:00:03"]

1. e4 {[%clk 0:02:59]}  c5 {[%clk 0:02:59]} 2. Nf3 {[%clk 0:02:59]}  Nc6 {[%clk 0:02:59]} 3. g3 {[%clk 0:02:59]}  Nf6 {[%clk 0:02:58]} 4. d3 {[%clk 0:02:59]}  g6 {[%clk 0:02:58]} 5. Bg2 {[%clk 0:02:59]}  Bg7 {[%clk 0:02:58]} 6. O-O {[%clk 0:03:00]}  O-O {[%clk 0:02:59]} 7. Re1 {[%clk 0:03:00]}  d5 {[%clk 0:02:56]} 8. e5 {[%clk 0:02:37]}  Ng4 {[%clk 0:02:53]} 9. Bf4 {[%clk 0:02:36]}  f6 {[%clk 0:02:50]} 10. exf6 {[%clk 0:02:36]}  Nxf6 {[%clk 0:02:45]} 11. Ne5 {[%clk 0:02:33]}  Nh5 {[%clk 0:02:22]} 12. Nxc6 {[%clk 0:02:33]}  bxc6 {[%clk 0:02:23]} 13. Be5 {[%clk 0:02:33]}  Bxe5 {[%clk 0:02:18]} 14. Rxe5 {[%clk 0:02:34]}  Qb6 {[%clk 0:02:02]} 15. b3 {[%clk 0:02:31]}  Qc7 {[%clk 0:01:40]} 16. Qe2 {[%clk 0:02:28]}  Bg4 {[%clk 0:01:06]} 17. Rxe7 {[%clk 0:02:16]}  Rae8 {[%clk 0:01:04]} 18. Rxc7 {[%clk 0:00:49]}  Rxe2 {[%clk 0:00:54]} 19. Na3 {[%clk 0:00:33]}  Rfxf2 {[%clk 0:00:38]} 20. Bf1 {[%clk 0:00:33]}  Rxh2 {[%clk 0:00:18]} 21. Bxe2 {[%clk 0:00:33]}  Rxe2 {[%clk 0:00:18]} 22. Rf1 {[%clk 0:00:28]}  Nxg3 {[%clk 0:00:11]} 23. Rf2 {[%clk 0:00:28]}  Re1+ {[%clk 0:00:10]} 24. Kg2 {[%clk 0:00:28]}  Nf5 {[%clk 0:00:10]} 25. Rxc6 {[%clk 0:00:23]}  Kg7 {[%clk 0:00:09]} 26. Rxc5 {[%clk 0:00:23]}  Kh6 {[%clk 0:00:09]} 27. Nb5 {[%clk 0:00:18]}  Kg5 {[%clk 0:00:06]} 28. Nc3 {[%clk 0:00:16]}  Kh4 {[%clk 0:00:05]} 29. Nxd5 {[%clk 0:00:11]}  Bh3+ {[%clk 0:00:04]} 30. Kf3 {[%clk 0:00:12]}  Bg4+ {[%clk 0:00:03]} 31. Kf4 {[%clk 0:00:12]}  g5# {[%clk 0:00:03]} 0-1

[Event "December 5 Late 2023"]
[Site "https://www.chess.com"]
[Date "2023.12.05"]
[Round "7"]
[White "Ventura Bolet, Maxim"]
[Black "Annaberdiyev, Meylis"]
[Result "1/2-1/2"]
[Board "67"]
[TimeControl "180+1"]
[WhiteFideId "22238824"]
[BlackFideId "14000563"]
[WhiteElo "2476"]
[BlackElo "2687"]
[WhiteTeam "ESP"]
[BlackTeam "TKM"]
[WhiteClock "0:00:04"]
[BlackClock "0:00:07"]

1. Nf3 {[%clk 0:02:57]}  d5 {[%clk 0:02:58]} 2. g3 {[%clk 0:02:57]}  c6 {[%clk 0:02:58]} 3. Bg2 {[%clk 0:02:57]}  Bg4 {[%clk 0:02:59]} 4. O-O {[%clk 0:02:57]}  Nd7 {[%clk 0:02:59]} 5. c4 {[%clk 0:02:57]}  e6 {[%clk 0:02:58]} 6. cxd5 {[%clk 0:02:57]}  exd5 {[%clk 0:02:53]} 7. d4 {[%clk 0:02:55]}  Ngf6 {[%clk 0:02:53]} 8. Nc3 {[%clk 0:02:55]}  Bd6 {[%clk 0:02:52]} 9. Bf4 {[%clk 0:02:55]}  Bxf4 {[%clk 0:02:51]} 10. gxf4 {[%clk 0:02:56]}  Bxf3 {[%clk 0:02:51]} 11. Bxf3 {[%clk 0:02:55]}  Qc7 {[%clk 0:02:48]} 12. e3 {[%clk 0:02:54]}  h6 {[%clk 0:02:48]} 13. Rc1 {[%clk 0:02:52]}  Qd6 {[%clk 0:02:47]} 14. Kh1 {[%clk 0:02:40]}  g5 {[%clk 0:02:45]} 15. Ne2 {[%clk 0:02:35]}  Nf8 {[%clk 0:02:23]} 16. Qb3 {[%clk 0:02:16]}  Rb8 {[%clk 0:02:22]} 17. Qa3 {[%clk 0:02:03]}  Qxa3 {[%clk 0:02:17]} 18. bxa3 {[%clk 0:02:04]}  Ne6 {[%clk 0:02:18]} 19. fxg5 {[%clk 0:01:59]}  hxg5 {[%clk 0:02:16]} 20. Rg1 {[%clk 0:01:53]}  Ke7 {[%clk 0:02:12]} 21. Rb1 {[%clk 0:01:51]}  Rh4 {[%clk 0:02:04]} 22. Ng3 {[%clk 0:01:49]}  Ng7 {[%clk 0:01:53]} 23. a4 {[%clk 0:01:31]}  Kd6 {[%clk 0:01:38]} 24. a5 {[%clk 0:01:26]}  b5 {[%clk 0:01:31]} 25. axb6 {[%clk 0:01:23]}  Rxb6 {[%clk 0:01:31]} 26. Rxb6 {[%clk 0:01:10]}  axb6 {[%clk 0:01:32]} 27. a4 {[%clk 0:01:09]}  Rh8 {[%clk 0:01:28]} 28. Rb1 {[%clk 0:01:02]}  Kc7 {[%clk 0:01:25]} 29. Rc1 {[%clk 0:00:43]}  Ra8 {[%clk 0:01:19]} 30. e4 {[%clk 0:00:43]}  Kb7 {[%clk 0:00:54]} 31. exd5 {[%clk 0:00:31]}  Nxd5 {[%clk 0:00:54]} 32. Bxd5 {[%clk 0:00:27]}  cxd5 {[%clk 0:00:55]} 33. Re1 {[%clk 0:00:27]}  Ne6 {[%clk 0:00:55]} 34. Nf5 {[%clk 0:00:25]}  Rxa4 {[%clk 0:00:52]} 35. Nd6+ {[%clk 0:00:25]}  Kc6 {[%clk 0:00:50]} 36. Nxf7 {[%clk 0:00:26]}  Nxd4 {[%clk 0:00:50]} 37. Nxg5 {[%clk 0:00:26]}  b5 {[%clk 0:00:47]} 38. Kg2 {[%clk 0:00:15]}  b4 {[%clk 0:00:46]} 39. Rc1+ {[%clk 0:00:09]}  Kb5 {[%clk 0:00:43]} 40. Nf7 {[%clk 0:00:08]}  b3 {[%clk 0:00:40]} 41. Ne5 {[%clk 0:00:08]}  Ne2 {[%clk 0:00:29]} 42. Rc8 {[%clk 0:00:07]}  Rd4 {[%clk 0:00:22]} 43. Rb8+ {[%clk 0:00:06]}  Kc5 {[%clk 0:00:19]} 44. Rxb3 {[%clk 0:00:05]}  Re4 {[%clk 0:00:17]} 45. Re3 {[%clk 0:00:02]}  Nf4+ {[%clk 0:00:15]} 46. Kf3 {[%clk 0:00:02]}  Rxe3+ {[%clk 0:00:10]} 47. fxe3 {[%clk 0:00:03]}  Ne6 {[%clk 0:00:09]} 48. h4 {[%clk 0:00:03]}  d4 {[%clk 0:00:09]} 49. exd4+ {[%clk 0:00:03]}  Kxd4 {[%clk 0:00:10]} 50. Ng4 {[%clk 0:00:03]}  Ng7 {[%clk 0:00:09]} 51. Kf4 {[%clk 0:00:03]}  Kd5 {[%clk 0:00:09]} 52. Kg5 {[%clk 0:00:03]}  Ne6+ {[%clk 0:00:08]} 53. Kf5 {[%clk 0:00:03]}  Kd6 {[%clk 0:00:06]} 54. Kf6 {[%clk 0:00:02]}  Nf4 {[%clk 0:00:06]} 55. Kg5 {[%clk 0:00:02]}  Ne6+ {[%clk 0:00:06]} 56. Kg6 {[%clk 0:00:03]}  Ke7 {[%clk 0:00:06]} 57. Ne5 {[%clk 0:00:03]}  Nf4+ {[%clk 0:00:06]} 58. Kg5 {[%clk 0:00:04]}  Ne6+ {[%clk 0:00:06]} 59. Kg6 {[%clk 0:00:03]}  Nf4+ {[%clk 0:00:06]} 60. Kg7 {[%clk 0:00:04]}  Ke6 {[%clk 0:00:06]} 61. Ng6 {[%clk 0:00:04]}  Nh5+ {[%clk 0:00:06]} 62. Kh6 {[%clk 0:00:04]}  Ng3 {[%clk 0:00:06]} 63. Kg5 {[%clk 0:00:04]}  Ne4+ {[%clk 0:00:06]} 64. Kh6 {[%clk 0:00:05]}  Ng3 {[%clk 0:00:06]} 65. Kg5 {[%clk 0:00:04]}  Ne4+ {[%clk 0:00:07]} 66. Kf4 {[%clk 0:00:05]}  Nf6 {[%clk 0:00:07]} 67. Kg5 {[%clk 0:00:04]}  Ne4+ {[%clk 0:00:07]} 1/2-1/2